[Event "Meltwater Champions Chess Tour 2022: Chessable Masters | Prelims"]
[White "Vidit, Santosh Gujrathi"]
[Black "Praggnanandhaa, R"]
[WhiteFideId "5029465"]
[BlackFideId "25059530"]
[WhiteElo "2617"]
[BlackElo "1927"]
[Result "0-1"]
[Round "15"]
[TimeControl "900+10"]
[Date "2022.05.22"]
[WhiteClock "0:00:25"]
[BlackClock "0:00:52"]

1. e4 {[%clk 0:15:20]}  c5 {[%clk 0:15:20]} 2. Nf3 {[%clk 0:15:27]}  Nc6 {[%clk 0:15:28]} 3. Bb5 {[%clk 0:15:36]}  e6 {[%clk 0:15:37]} 4. Bxc6 {[%clk 0:15:07]}  bxc6 {[%clk 0:15:45]} 5. d3 {[%clk 0:15:11]}  Ne7 {[%clk 0:15:52]} 6. h4 {[%clk 0:14:38]}  h5 {[%clk 0:15:56]} 7. Nbd2 {[%clk 0:13:56]}  f6 {[%clk 0:15:16]} 8. e5 {[%clk 0:13:48]}  fxe5 {[%clk 0:14:37]} 9. Nxe5 {[%clk 0:13:51]}  d6 {[%clk 0:14:45]} 10. Nec4 {[%clk 0:13:50]}  Nf5 {[%clk 0:13:45]} 11. Nf3 {[%clk 0:12:58]}  Be7 {[%clk 0:13:26]} 12. Bg5 {[%clk 0:12:38]}  e5 {[%clk 0:12:48]} 13. Qd2 {[%clk 0:12:08]}  Be6 {[%clk 0:12:16]} 14. Bxe7 {[%clk 0:11:36]}  Qxe7 {[%clk 0:12:21]} 15. Ng5 {[%clk 0:11:41]}  O-O {[%clk 0:07:47]} 16. O-O-O {[%clk 0:11:29]}  Rab8 {[%clk 0:07:21]} 17. c3 {[%clk 0:09:02]}  Bd5 {[%clk 0:06:33]} 18. f3 {[%clk 0:08:56]}  Nh6 {[%clk 0:05:35]} 19. Ne4 {[%clk 0:08:28]}  Nf7 {[%clk 0:04:21]} 20. Ng3 {[%clk 0:05:14]}  g6 {[%clk 0:04:22]} 21. Rde1 {[%clk 0:04:59]}  a5 {[%clk 0:03:23]} 22. f4 {[%clk 0:04:18]}  Qe6 {[%clk 0:02:59]} 23. Nxa5 {[%clk 0:03:08]}  Bxa2 {[%clk 0:02:59]} 24. fxe5 {[%clk 0:02:37]}  dxe5 {[%clk 0:01:18]} 25. c4 {[%clk 0:02:23]}  Rb4 {[%clk 0:01:15]} 26. Ne4 {[%clk 0:02:30]}  Rfb8 {[%clk 0:01:10]} 27. Re2 {[%clk 0:01:56]}  Kg7 {[%clk 0:00:47]} 28. Rf1 {[%clk 0:02:01]}  Nd6 {[%clk 0:00:24]} 29. Nxc5 {[%clk 0:01:58]}  Qg4 {[%clk 0:00:22]} 30. Qe3 {[%clk 0:01:51]}  Re8 {[%clk 0:00:12]} 31. Qf3 {[%clk 0:01:37]}  Qd4 {[%clk 0:00:14]} 32. Qf6+ {[%clk 0:01:42]}  Kh7 {[%clk 0:00:23]} 33. Ne6 {[%clk 0:01:31]}  Rxe6 {[%clk 0:00:30]} 34. Qxe6 {[%clk 0:01:40]}  Qxd3 {[%clk 0:00:38]} 35. Qe7+ {[%clk 0:01:14]}  Kh6 {[%clk 0:00:45]} 36. Rf8 {[%clk 0:00:28]}  Qb1+ {[%clk 0:00:44]} 37. Kd2 {[%clk 0:00:36]}  Rxb2+ {[%clk 0:00:43]} 38. Ke3 {[%clk 0:00:25]}  Qe4+ {[%clk 0:00:52]} 0-1


[Site "http://www.chessbomb.com"]

[Event "Meltwater Champions Chess Tour 2022: Chessable Masters | Prelims"]
[White "Wei, Yi"]
[Black "Grandelius, Nils"]
[WhiteFideId "8603405"]
[BlackFideId "1710400"]
[WhiteElo "2752"]
[BlackElo "2652"]
[Result "1-0"]
[Round "15"]
[TimeControl "900+10"]
[Date "2022.05.22"]
[WhiteClock "0:00:43"]
[BlackClock "0:00:46"]

1. e4 {[%clk 0:15:20]}  c5 {[%clk 0:15:20]} 2. Nf3 {[%clk 0:15:28]}  d6 {[%clk 0:15:29]} 3. d4 {[%clk 0:15:38]}  cxd4 {[%clk 0:15:39]} 4. Nxd4 {[%clk 0:15:47]}  Nf6 {[%clk 0:15:49]} 5. Nc3 {[%clk 0:15:56]}  a6 {[%clk 0:15:58]} 6. Be3 {[%clk 0:16:05]}  e5 {[%clk 0:16:05]} 7. Nb3 {[%clk 0:16:14]}  Be6 {[%clk 0:16:14]} 8. Qd2 {[%clk 0:16:19]}  Be7 {[%clk 0:16:07]} 9. h3 {[%clk 0:16:20]}  O-O {[%clk 0:15:52]} 10. O-O-O {[%clk 0:16:24]}  Nbd7 {[%clk 0:15:58]} 11. g4 {[%clk 0:16:15]}  b5 {[%clk 0:16:06]} 12. a3 {[%clk 0:16:22]}  Qc7 {[%clk 0:16:13]} 13. Kb1 {[%clk 0:16:27]}  Nc5 {[%clk 0:16:16]} 14. Nd5 {[%clk 0:16:35]}  Bxd5 {[%clk 0:14:23]} 15. exd5 {[%clk 0:16:42]}  Nfe4 {[%clk 0:14:30]} 16. Qe1 {[%clk 0:15:48]}  Bh4 {[%clk 0:12:06]} 17. Rg1 {[%clk 0:14:01]}  f5 {[%clk 0:09:45]} 18. gxf5 {[%clk 0:13:34]}  Rxf5 {[%clk 0:09:44]} 19. Nxc5 {[%clk 0:13:30]}  Nxc5 {[%clk 0:09:55]} 20. Rg4 {[%clk 0:13:09]}  Bf6 {[%clk 0:09:17]} 21. h4 {[%clk 0:05:26]}  e4 {[%clk 0:07:30]} 22. Bh3 {[%clk 0:04:52]}  Re5 {[%clk 0:02:43]} 23. Bd4 {[%clk 0:04:40]}  Rf8 {[%clk 0:02:19]} 24. Bxe5 {[%clk 0:04:03]}  Bxe5 {[%clk 0:02:29]} 25. Rg5 {[%clk 0:03:59]}  Bf6 {[%clk 0:01:29]} 26. Rf5 {[%clk 0:03:27]}  g6 {[%clk 0:00:43]} 27. Rf4 {[%clk 0:03:32]}  Qg7 {[%clk 0:00:52]} 28. Be6+ {[%clk 0:03:19]}  Kh8 {[%clk 0:00:54]} 29. h5 {[%clk 0:02:11]}  Qh6 {[%clk 0:00:57]} 30. Rxf6 {[%clk 0:01:58]}  Rxf6 {[%clk 0:01:04]} 31. Qc3 {[%clk 0:02:00]}  g5 {[%clk 0:00:37]} 32. b4 {[%clk 0:02:06]}  Na4 {[%clk 0:00:46]} 33. Qd4 {[%clk 0:00:33]}  Qg7 {[%clk 0:00:53]} 34. Kc1 {[%clk 0:00:13]}  Rf4 {[%clk 0:00:41]} 35. h6 {[%clk 0:00:14]}  Qxd4 {[%clk 0:00:44]} 36. Rxd4 {[%clk 0:00:24]}  Nb6 {[%clk 0:00:29]} 37. a4 {[%clk 0:00:13]}  Rh4 {[%clk 0:00:23]} 38. a5 {[%clk 0:00:16]}  Nc4 {[%clk 0:00:32]} 39. Kd1 {[%clk 0:00:11]}  Rxh6 {[%clk 0:00:36]} 40. Rxe4 {[%clk 0:00:17]}  Rf6 {[%clk 0:00:38]} 41. Bc8 {[%clk 0:00:21]}  Rxf2 {[%clk 0:00:40]} 42. Bxa6 {[%clk 0:00:31]}  Rd2+ {[%clk 0:00:17]} 43. Ke1 {[%clk 0:00:38]}  Rxc2 {[%clk 0:00:22]} 44. Bxb5 {[%clk 0:00:44]}  Ne5 {[%clk 0:00:29]} 45. Rxe5 {[%clk 0:00:32]}  dxe5 {[%clk 0:00:39]} 46. d6 {[%clk 0:00:40]}  Rc8 {[%clk 0:00:45]} 47. d7 {[%clk 0:00:39]}  Rf8 {[%clk 0:00:46]} 48. Bc6 {[%clk 0:00:43]} 1-0


[Site "http://www.chessbomb.com"]

[Event "Meltwater Champions Chess Tour 2022: Chessable Masters | Prelims"]
[White "Giri, Anish"]
[Black "Tari, Aryan"]
[WhiteFideId "24116068"]
[BlackFideId "1510045"]
[WhiteElo "2730"]
[BlackElo "2531"]
[Result "1/2-1/2"]
[Round "15"]
[TimeControl "900+10"]
[Date "2022.05.22"]
[WhiteClock "0:03:29"]
[BlackClock "0:02:49"]

1. e4 {[%clk 0:15:20]}  c6 {[%clk 0:15:20]} 2. Nc3 {[%clk 0:15:28]}  d5 {[%clk 0:15:28]} 3. Nf3 {[%clk 0:15:38]}  dxe4 {[%clk 0:15:35]} 4. Nxe4 {[%clk 0:15:47]}  Nf6 {[%clk 0:15:45]} 5. Qe2 {[%clk 0:15:56]}  Nxe4 {[%clk 0:15:51]} 6. Qxe4 {[%clk 0:16:06]}  Nd7 {[%clk 0:16:00]} 7. Bc4 {[%clk 0:16:13]}  Nf6 {[%clk 0:16:08]} 8. Ne5 {[%clk 0:16:22]}  e6 {[%clk 0:16:17]} 9. Qf4 {[%clk 0:16:32]}  Bd6 {[%clk 0:15:07]} 10. d4 {[%clk 0:16:32]}  O-O {[%clk 0:14:24]} 11. Qg3 {[%clk 0:11:46]}  c5 {[%clk 0:11:48]} 12. Bh6 {[%clk 0:08:36]}  Nh5 {[%clk 0:11:15]} 13. Qg4 {[%clk 0:08:44]}  cxd4 {[%clk 0:10:44]} 14. Nf3 {[%clk 0:08:18]}  Qa5+ {[%clk 0:09:36]} 15. Bd2 {[%clk 0:08:17]}  Bb4 {[%clk 0:08:56]} 16. O-O-O {[%clk 0:07:46]}  Bxd2+ {[%clk 0:06:26]} 17. Rxd2 {[%clk 0:07:53]}  Nf6 {[%clk 0:06:24]} 18. Qg5 {[%clk 0:06:22]}  Qxg5 {[%clk 0:05:28]} 19. Nxg5 {[%clk 0:06:32]}  Bd7 {[%clk 0:05:20]} 20. Rxd4 {[%clk 0:06:21]}  Bc6 {[%clk 0:05:21]} 21. f3 {[%clk 0:06:08]}  Rfd8 {[%clk 0:05:09]} 22. Rxd8+ {[%clk 0:06:09]}  Rxd8 {[%clk 0:05:19]} 23. Nh3 {[%clk 0:04:51]}  Kf8 {[%clk 0:05:00]} 24. a3 {[%clk 0:04:36]}  h6 {[%clk 0:04:59]} 25. Nf2 {[%clk 0:04:36]}  g5 {[%clk 0:04:51]} 26. Re1 {[%clk 0:04:44]}  h5 {[%clk 0:04:14]} 27. Nd3 {[%clk 0:04:52]}  b6 {[%clk 0:03:44]} 28. Ne5 {[%clk 0:05:00]}  Bb7 {[%clk 0:03:53]} 29. c3 {[%clk 0:04:18]}  g4 {[%clk 0:03:48]} 30. Be2 {[%clk 0:04:16]}  gxf3 {[%clk 0:03:33]} 31. Bxf3 {[%clk 0:04:06]}  Bxf3 {[%clk 0:03:36]} 32. Nxf3 {[%clk 0:04:05]}  Ke7 {[%clk 0:03:24]} 33. Kc2 {[%clk 0:04:10]}  Nd5 {[%clk 0:03:06]} 34. g3 {[%clk 0:04:01]}  Rg8 {[%clk 0:02:44]} 35. c4 {[%clk 0:04:02]}  Nf6 {[%clk 0:02:49]} 36. b4 {[%clk 0:04:09]}  Nd7 {[%clk 0:02:52]} 37. Nd4 {[%clk 0:04:03]}  a6 {[%clk 0:02:32]} 38. Kc3 {[%clk 0:04:10]}  e5 {[%clk 0:02:16]} 39. Nf5+ {[%clk 0:03:10]}  Ke6 {[%clk 0:02:21]} 40. Nd4+ {[%clk 0:03:15]}  Ke7 {[%clk 0:02:30]} 41. Nf5+ {[%clk 0:03:23]}  Ke6 {[%clk 0:02:40]} 42. Nd4+ {[%clk 0:03:29]}  Ke7 {[%clk 0:02:49]} 1/2-1/2

[Event "Meltwater Champions Chess Tour 2022: Ch"]
[Site "http://www.chessbomb.com"]
[Date "2022.05.19"]
[Round "1"]
[White "Praggnanandhaa, R."]
[Black "Wei, Yi"]
[Result "1/2-1/2"]
[ECO "B51"]
[WhiteElo "1927"]
[BlackElo "2752"]
[PlyCount "85"]
[EventDate "2022.??.??"]
[TimeControl "900+10"]
[WhiteClock "0:00:55"]
[BlackClock "0:02:12"]

1. e4 {[%emt 0:00:00]} c5 {[%emt 0:00:00]} 2. Nf3 {[%emt 0:00:00]} d6 {[%emt 0:
00:00]} 3. Bb5+ {[%emt 0:00:07]} Nd7 {[%emt 0:00:13]} 4. a4 {[%emt 0:00:06]}
Ngf6 {[%emt 0:00:06]} 5. Nc3 {[%emt 0:00:03]} a6 {[%emt 0:00:23]} 6. Be2 {
[%emt 0:00:09]} b6 {[%emt 0:00:12]} 7. d4 {[%emt 0:00:07]} cxd4 {[%emt 0:00:09]
} 8. Qxd4 {[%emt 0:00:00]} Bb7 {[%emt 0:00:05]} 9. O-O {[%emt 0:00:16]} e5 {
[%emt 0:00:01]} 10. Qe3 {[%emt 0:00:12]} Be7 {[%emt 0:00:33]} 11. Nd2 {[%emt 0:
00:56]} O-O {[%emt 0:00:26]} 12. Rd1 {[%emt 0:01:09]} Qc7 {[%emt 0:02:04]} 13.
Nc4 {[%emt 0:01:51]} Nc5 {[%emt 0:00:04]} 14. Bf3 {[%emt 0:03:39]} Rad8 {
[%emt 0:00:04]} 15. Qe2 {[%emt 0:02:04]} Ncxe4 {[%emt 0:01:02]} 16. Nxe4 {
[%emt 0:00:16]} Nxe4 {[%emt 0:00:14]} 17. Bxe4 {[%emt 0:00:04]} Bxe4 {[%emt 0:
00:04]} 18. Qxe4 {[%emt 0:00:18]} d5 {[%emt 0:00:01]} 19. Qxe5 {[%emt 0:01:13]}
dxc4 {[%emt 0:00:05]} 20. Bf4 {[%emt 0:00:01]} Rxd1+ {[%emt 0:03:00]} 21. Rxd1
{[%emt 0:00:03]} Rd8 {[%emt 0:00:02]} 22. Rxd8+ {[%emt 0:01:19]} Qxd8 {[%emt 0:
00:03]} 23. g3 {[%emt 0:00:08]} Bf6 {[%emt 0:05:22]} 24. Qe4 {[%emt 0:00:03]}
Qc8 {[%emt 0:00:08]} 25. c3 {[%emt 0:00:53]} b5 {[%emt 0:00:11]} 26. axb5 {
[%emt 0:00:37]} axb5 {[%emt 0:00:00]} 27. Qd5 {[%emt 0:00:20]} Qe8 {[%emt 0:00:
02]} 28. Kg2 {[%emt 0:00:51]} g6 {[%emt 0:01:08]} 29. Bh6 {[%emt 0:00:24]} Bg7
{[%emt 0:00:17]} 30. Be3 {[%emt 0:00:02]} h5 {[%emt 0:00:14]} 31. h3 {[%emt 0:
00:16]} Qe5 {[%emt 0:00:52]} 32. Qd8+ {[%emt 0:01:16]} Kh7 {[%emt 0:00:02]} 33.
Qd7 {[%emt 0:00:05]} Qe4+ {[%emt 0:01:08]} 34. Kh2 {[%emt 0:00:03]} Qf5 {
[%emt 0:00:02]} 35. Qb7 {[%emt 0:00:16]} Kg8 {[%emt 0:00:24]} 36. Kg2 {[%emt 0:
00:13]} Bf6 {[%emt 0:00:15]} 37. Qc6 {[%emt 0:00:41]} Kh7 {[%emt 0:00:22]} 38.
Qb7 {[%emt 0:00:11]} Kg7 {[%emt 0:00:09]} 39. h4 {[%emt 0:00:16]} Kg8 {[%emt 0:
00:11]} 40. Qa8+ {[%emt 0:00:03]} Kg7 {[%emt 0:00:08]} 41. Qb7 {[%emt 0:00:02]}
Kg8 {[%emt 0:00:01]} 42. Qa8+ {[%emt 0:00:37]} Kg7 {[%emt 0:00:01]} 43. Qb7 {
[%emt 0:00:05]} 1/2-1/2

[Event "Meltwater Champions Chess Tour 2022: Ch"]
[Site "http://www.chessbomb.com"]
[Date "2022.05.19"]
[Round "1"]
[White "Jones, Gawain C B"]
[Black "Shankland, Sam"]
[Result "0-1"]
[ECO "B22"]
[WhiteElo "2630"]
[BlackElo "2616"]
[PlyCount "96"]
[EventDate "2022.??.??"]
[TimeControl "900+10"]
[WhiteClock "0:00:11"]
[BlackClock "0:03:15"]

1. e4 {[%emt 0:00:00]} c5 {[%emt 0:00:00]} 2. c3 {[%emt 0:00:00]} Nf6 {[%emt 0:
00:00]} 3. e5 {[%emt 0:00:00]} Nd5 {[%emt 0:00:00]} 4. Nf3 {[%emt 0:00:00]} d6
{[%emt 0:00:02]} 5. d4 {[%emt 0:00:22]} cxd4 {[%emt 0:00:10]} 6. cxd4 {[%emt 0:
00:12]} Nc6 {[%emt 0:00:07]} 7. Bc4 {[%emt 0:00:47]} dxe5 {[%emt 0:00:07]} 8.
dxe5 {[%emt 0:00:01]} Be6 {[%emt 0:00:01]} 9. O-O {[%emt 0:00:32]} g6 {[%emt 0:
00:03]} 10. Ng5 {[%emt 0:00:06]} Bg7 {[%emt 0:00:03]} 11. Nxe6 {[%emt 0:00:02]}
fxe6 {[%emt 0:00:01]} 12. f4 {[%emt 0:00:06]} Qa5 {[%emt 0:00:08]} 13. Bxd5 {
[%emt 0:00:33]} exd5 {[%emt 0:00:18]} 14. Nc3 {[%emt 0:00:46]} e6 {[%emt 0:01:
21]} 15. Qg4 {[%emt 0:02:04]} Nd4 {[%emt 0:01:00]} 16. Be3 {[%emt 0:00:03]} Nf5
{[%emt 0:00:03]} 17. Bf2 {[%emt 0:00:01]} O-O {[%emt 0:00:13]} 18. Qe2 {
[%emt 0:01:02]} Rac8 {[%emt 0:00:52]} 19. g4 {[%emt 0:01:31]} Ne7 {[%emt 0:00:
04]} 20. Bh4 {[%emt 0:00:03]} Nc6 {[%emt 0:02:34]} 21. Nb5 {[%emt 0:00:06]} Qb4
{[%emt 0:00:32]} 22. Bg3 {[%emt 0:03:19]} Nd4 {[%emt 0:00:49]} 23. Nxd4 {
[%emt 0:00:02]} Qxd4+ {[%emt 0:00:01]} 24. Rf2 {[%emt 0:00:36]} Rc4 {[%emt 0:
00:21]} 25. Raf1 {[%emt 0:00:34]} Rfc8 {[%emt 0:01:48]} 26. Kh1 {[%emt 0:01:32]
} Qe4+ {[%emt 0:01:50]} 27. Qxe4 {[%emt 0:00:03]} Rxe4 {[%emt 0:00:00]} 28. Kg2
{[%emt 0:01:22]} Kf7 {[%emt 0:00:09]} 29. Rd1 {[%emt 0:00:23]} h5 {[%emt 0:00:
42]} 30. h3 {[%emt 0:00:13]} hxg4 {[%emt 0:00:17]} 31. hxg4 {[%emt 0:00:00]} g5
{[%emt 0:00:01]} 32. f5 {[%emt 0:01:10]} Bxe5 {[%emt 0:00:30]} 33. Bxe5 {
[%emt 0:00:12]} Rxe5 {[%emt 0:00:01]} 34. fxe6+ {[%emt 0:00:18]} Kxe6 {[%emt 0:
00:05]} 35. Rdf1 {[%emt 0:00:14]} d4 {[%emt 0:00:59]} 36. Rf6+ {[%emt 0:00:15]}
Kd5 {[%emt 0:00:01]} 37. R1f2 {[%emt 0:00:01]} d3 {[%emt 0:00:39]} 38. Rf7 {
[%emt 0:00:32]} Ke4 {[%emt 0:02:35]} 39. Rf1 {[%emt 0:01:22]} Rc2+ {[%emt 0:00:
06]} 40. Kg3 {[%emt 0:00:17]} Rxb2 {[%emt 0:00:05]} 41. Re1+ {[%emt 0:00:55]}
Kd4 {[%emt 0:00:22]} 42. Rd7+ {[%emt 0:00:01]} Rd5 {[%emt 0:00:00]} 43. Rde7 {
[%emt 0:00:16]} d2 {[%emt 0:00:08]} 44. Rd1 {[%emt 0:00:04]} Kd3 {[%emt 0:00:
06]} 45. Kf3 {[%emt 0:00:08]} Rb4 {[%emt 0:00:15]} 46. Rh1 {[%emt 0:00:23]}
Rf4+ {[%emt 0:00:09]} 47. Kg3 {[%emt 0:00:01]} Re4 {[%emt 0:00:05]} 48. Rxb7 {
[%emt 0:00:19]} Re1 {[%emt 0:00:02]} 0-1

[Event "Meltwater Champions Chess Tour 2022: Ch"]
[Site "http://www.chessbomb.com"]
[Date "2022.05.19"]
[Round "3"]
[White "Hansen, Eric"]
[Black "Mishra, Abhimanyu"]
[Result "0-1"]
[ECO "B51"]
[WhiteElo "2579"]
[BlackElo "2524"]
[PlyCount "98"]
[EventDate "2022.??.??"]
[TimeControl "900+10"]
[WhiteClock "0:00:47"]
[BlackClock "0:00:28"]

1. e4 {[%emt 0:00:00]} c5 {[%emt 0:00:00]} 2. Nf3 {[%emt 0:00:01]} d6 {[%emt 0:
00:00]} 3. Bb5+ {[%emt 0:00:02]} Nd7 {[%emt 0:00:00]} 4. c3 {[%emt 0:01:24]}
Ngf6 {[%emt 0:00:05]} 5. Qe2 {[%emt 0:00:01]} a6 {[%emt 0:00:30]} 6. Ba4 {
[%emt 0:00:02]} b5 {[%emt 0:00:01]} 7. Bc2 {[%emt 0:00:00]} Bb7 {[%emt 0:00:01]
} 8. O-O {[%emt 0:00:01]} g6 {[%emt 0:00:06]} 9. d4 {[%emt 0:00:08]} Bg7 {
[%emt 0:00:12]} 10. Rd1 {[%emt 0:02:47]} cxd4 {[%emt 0:01:14]} 11. cxd4 {
[%emt 0:00:03]} O-O {[%emt 0:00:01]} 12. Nc3 {[%emt 0:00:18]} Qc7 {[%emt 0:02:
05]} 13. Bd3 {[%emt 0:00:19]} Nb6 {[%emt 0:00:29]} 14. a3 {[%emt 0:04:47]} Rac8
{[%emt 0:00:17]} 15. h3 {[%emt 0:00:02]} Nc4 {[%emt 0:01:46]} 16. Qe1 {[%emt 0:
02:23]} Rfe8 {[%emt 0:03:16]} 17. a4 {[%emt 0:00:57]} b4 {[%emt 0:00:58]} 18.
Nb1 {[%emt 0:00:02]} e5 {[%emt 0:01:12]} 19. dxe5 {[%emt 0:00:43]} dxe5 {
[%emt 0:00:40]} 20. Nbd2 {[%emt 0:00:36]} Nd6 {[%emt 0:00:21]} 21. Qe2 {
[%emt 0:00:24]} a5 {[%emt 0:00:35]} 22. b3 {[%emt 0:00:06]} Nd7 {[%emt 0:00:49]
} 23. Bb2 {[%emt 0:00:03]} Nc5 {[%emt 0:00:05]} 24. Rac1 {[%emt 0:00:17]} Qe7 {
[%emt 0:00:30]} 25. Bb5 {[%emt 0:01:10]} Red8 {[%emt 0:01:11]} 26. Qe3 {
[%emt 0:00:03]} Nxb5 {[%emt 0:01:08]} 27. axb5 {[%emt 0:00:07]} Rd3 {[%emt 0:
00:48]} 28. Qe2 {[%emt 0:00:01]} Rcd8 {[%emt 0:00:18]} 29. Nc4 {[%emt 0:00:03]}
Rxd1+ {[%emt 0:00:11]} 30. Rxd1 {[%emt 0:00:02]} Nxb3 {[%emt 0:00:09]} 31.
Nfxe5 {[%emt 0:00:06]} a4 {[%emt 0:00:26]} 32. Nc6 {[%emt 0:00:40]} Bxc6 {
[%emt 0:00:20]} 33. bxc6 {[%emt 0:01:40]} a3 {[%emt 0:00:14]} 34. Rxd8+ {
[%emt 0:01:08]} Qxd8 {[%emt 0:00:03]} 35. Nxa3 {[%emt 0:00:06]} bxa3 {[%emt 0:
00:11]} 36. Bxa3 {[%emt 0:00:00]} Nd4 {[%emt 0:00:25]} 37. Qa6 {[%emt 0:00:11]}
Be5 {[%emt 0:00:08]} 38. g3 {[%emt 0:00:21]} h5 {[%emt 0:00:09]} 39. Bc5 {
[%emt 0:00:14]} Ne6 {[%emt 0:00:12]} 40. Be3 {[%emt 0:00:07]} Qd1+ {[%emt 0:00:
11]} 41. Kg2 {[%emt 0:00:01]} Qc2 {[%emt 0:00:05]} 42. Qc8+ {[%emt 0:00:12]}
Kg7 {[%emt 0:00:05]} 43. Qd7 {[%emt 0:00:19]} Qxe4+ {[%emt 0:00:07]} 44. Kf1 {
[%emt 0:00:02]} Bxg3 {[%emt 0:00:20]} 45. Bb6 {[%emt 0:00:15]} Be5 {[%emt 0:00:
14]} 46. Be3 {[%emt 0:00:01]} Qh1+ {[%emt 0:00:12]} 47. Ke2 {[%emt 0:00:03]}
Qxh3 {[%emt 0:00:09]} 48. Qd5 {[%emt 0:00:00]} Qf5 {[%emt 0:00:06]} 49. Qc4 {
[%emt 0:00:05]} Qg4+ {[%emt 0:00:07]} 0-1

[Event "Meltwater Champions Chess Tour 2022: Ch"]
[Site "http://www.chessbomb.com"]
[Date "2022.05.19"]
[Round "4"]
[White "Vidit, Santosh Gujrathi"]
[Black "Ding, Liren"]
[Result "1/2-1/2"]
[ECO "E32"]
[WhiteElo "2617"]
[BlackElo "2836"]
[PlyCount "132"]
[EventDate "2022.??.??"]
[TimeControl "900+10"]
[WhiteClock "0:01:56"]
[BlackClock "0:03:18"]

1. d4 {[%emt 0:00:00]} Nf6 {[%emt 0:00:00]} 2. c4 {[%emt 0:00:00]} e6 {[%emt 0:
00:00]} 3. Nc3 {[%emt 0:00:00]} Bb4 {[%emt 0:00:00]} 4. Qc2 {[%emt 0:00:00]}
O-O {[%emt 0:00:02]} 5. e4 {[%emt 0:01:23]} d5 {[%emt 0:00:03]} 6. e5 {[%emt 0:
00:02]} Ne4 {[%emt 0:00:01]} 7. Bd3 {[%emt 0:00:03]} c5 {[%emt 0:00:00]} 8.
Nge2 {[%emt 0:00:21]} cxd4 {[%emt 0:00:03]} 9. Nxd4 {[%emt 0:00:02]} Nd7 {
[%emt 0:00:00]} 10. Bf4 {[%emt 0:00:03]} Qh4 {[%emt 0:00:01]} 11. g3 {[%emt 0:
00:05]} Qh5 {[%emt 0:00:01]} 12. O-O {[%emt 0:00:17]} Bxc3 {[%emt 0:00:31]} 13.
bxc3 {[%emt 0:00:03]} g5 {[%emt 0:00:00]} 14. cxd5 {[%emt 0:00:20]} exd5 {
[%emt 0:00:16]} 15. Be3 {[%emt 0:00:25]} Nxe5 {[%emt 0:00:05]} 16. f3 {[%emt 0:
00:02]} Nc5 {[%emt 0:00:49]} 17. Bf5 {[%emt 0:00:18]} Ne6 {[%emt 0:00:12]} 18.
Rae1 {[%emt 0:01:10]} Nxd4 {[%emt 0:00:45]} 19. Bxd4 {[%emt 0:00:02]} Nc6 {
[%emt 0:00:11]} 20. Bf6 {[%emt 0:00:28]} Qh6 {[%emt 0:02:42]} 21. Bxc8 {
[%emt 0:00:04]} Raxc8 {[%emt 0:03:28]} 22. Qf5 {[%emt 0:00:04]} Qg6 {[%emt 0:
00:01]} 23. Qxg5 {[%emt 0:01:22]} Qxg5 {[%emt 0:00:03]} 24. Bxg5 {[%emt 0:00:
01]} f6 {[%emt 0:00:04]} 25. Bf4 {[%emt 0:00:50]} Rfd8 {[%emt 0:01:52]} 26. Rf2
{[%emt 0:01:27]} Kf7 {[%emt 0:00:08]} 27. Rd2 {[%emt 0:02:33]} d4 {[%emt 0:00:
58]} 28. cxd4 {[%emt 0:00:03]} Rxd4 {[%emt 0:00:01]} 29. Rb1 {[%emt 0:01:15]}
b6 {[%emt 0:01:01]} 30. Rc2 {[%emt 0:00:03]} Rdd8 {[%emt 0:02:49]} 31. Rbc1 {
[%emt 0:00:04]} Ne7 {[%emt 0:00:00]} 32. Rc7 {[%emt 0:00:36]} a6 {[%emt 0:00:
22]} 33. Kf2 {[%emt 0:01:10]} h5 {[%emt 0:00:25]} 34. Rb7 {[%emt 0:01:20]} Ke8
{[%emt 0:01:05]} 35. Re1 {[%emt 0:02:41]} Rc2+ {[%emt 0:00:03]} 36. Kg1 {
[%emt 0:00:15]} Rd7 {[%emt 0:00:02]} 37. Rxb6 {[%emt 0:00:02]} Kf7 {[%emt 0:00:
08]} 38. Rxa6 {[%emt 0:00:05]} Rb7 {[%emt 0:00:15]} 39. Be3 {[%emt 0:00:55]}
Nf5 {[%emt 0:00:25]} 40. Ra7 {[%emt 0:01:06]} Rxa7 {[%emt 0:00:01]} 41. Bxa7 {
[%emt 0:00:00]} Rxa2 {[%emt 0:00:01]} 42. Bf2 {[%emt 0:00:14]} Nd6 {[%emt 0:00:
41]} 43. Rc1 {[%emt 0:00:13]} Kg6 {[%emt 0:00:27]} 44. Rc6 {[%emt 0:00:13]} Nf5
{[%emt 0:00:02]} 45. h3 {[%emt 0:00:26]} Ra1+ {[%emt 0:00:45]} 46. Kg2 {
[%emt 0:00:01]} Ra2 {[%emt 0:00:00]} 47. Re6 {[%emt 0:00:20]} Nd4 {[%emt 0:00:
11]} 48. Re4 {[%emt 0:00:02]} Nf5 {[%emt 0:00:12]} 49. g4 {[%emt 0:00:11]} hxg4
{[%emt 0:00:17]} 50. hxg4 {[%emt 0:00:07]} Ng7 {[%emt 0:00:38]} 51. Rc4 {
[%emt 0:00:18]} Ne6 {[%emt 0:00:03]} 52. Kg3 {[%emt 0:00:06]} Ra3 {[%emt 0:00:
03]} 53. Kg2 {[%emt 0:00:11]} Ra2 {[%emt 0:00:03]} 54. Re4 {[%emt 0:00:21]} Ng5
{[%emt 0:00:03]} 55. Re3 {[%emt 0:00:01]} f5 {[%emt 0:00:06]} 56. gxf5+ {
[%emt 0:00:05]} Kxf5 {[%emt 0:00:01]} 57. Rb3 {[%emt 0:00:03]} Nh3 {[%emt 0:00:
09]} 58. Kxh3 {[%emt 0:00:07]} Rxf2 {[%emt 0:00:01]} 59. Kg3 {[%emt 0:00:01]}
Ra2 {[%emt 0:00:01]} 60. Rb5+ {[%emt 0:00:01]} Kf6 {[%emt 0:00:01]} 61. f4 {
[%emt 0:00:00]} Ra1 {[%emt 0:00:02]} 62. Kg4 {[%emt 0:00:01]} Rg1+ {[%emt 0:00:
01]} 63. Kf3 {[%emt 0:00:01]} Rf1+ {[%emt 0:00:00]} 64. Kg4 {[%emt 0:00:00]}
Rg1+ {[%emt 0:00:01]} 65. Kf3 {[%emt 0:00:00]} Rf1+ {[%emt 0:00:00]} 66. Kg4 {
[%emt 0:00:01]} Rg1+ {[%emt 0:00:00]} 1/2-1/2